lending/lending_fUSD_20260101
["ID","MTS","AMOUNT","RATE_DAILY","PERIOD"]
[400290829,1767283879134,408.671328,0.00043134,50]
[400290830,1767283879431,408.671328,0.00043134,50]
[400290831,1767283879714,408.671328,0.00043134,50]
[400290832,1767283879990,408.671328,0.00043134,50]
[400290833,1767283880276,408.671328,0.00043134,50]
[400290834,1767283880570,408.671328,0.00043134,50]
[400290835,1767283880870,408.671328,0.00043134,50]
[400290836,1767283881148,408.671328,0.00043134,50]
[400290837,1767283881381,153.528773,0.00043134,50]
[400290838,1767283881456,408.671328,0.00043134,50]
[400290839,1767283881907,408.671328,0.00043134,50]
[400290840,1767283882047,408.671328,0.00043134,50]
[400290841,1767283882337,408.671328,0.00043134,50]
[400290842,1767283882649,408.671328,0.00043134,50]
[400290843,1767283882946,408.671328,0.00043134,50]
[400290844,1767283883221,408.671328,0.00043134,50]
[400290845,1767283883520,408.671328,0.00043134,50]
[400290846,1767283883813,408.671328,0.00043134,50]
[400290847,1767283884098,408.671328,0.00043134,50]
[400290848,1767283884399,408.671328,0.00043134,50]
[400290849,1767283884965,408.671319,0.00043134,50]
[400290850,1767283925437,620.0,0.00043134,120]
[400290853,1767283980019,500.0,0.00043134,120]
[400290854,1767283980128,500.0,0.00043134,120]
[400290855,1767283980219,500.0,0.00043134,120]
[400290856,1767283980306,500.0,0.00043134,120]
[400290857,1767283980404,500.0,0.00043134,120]
[400290858,1767283980504,500.0,0.00043134,120]
[400290859,1767283983562,426.78349363,0.00043134,120]
[400290861,1767283999245,460.0,0.00043134,30]
[400290863,1767284139222,269.05040048,0.00043135,30]
[400290864,1767284162011,500.0,0.00043135,120]
[400290865,1767284167712,151.0,0.00043135,50]
[400290867,1767284225733,151.0,0.00043135,50]
[400290868,1767284242675,151.0,0.00043135,50]
[400290869,1767284304944,785.331357,0.00043135,50]
[400290870,1767284305628,785.331357,0.00043135,50]
[400290871,1767284305772,785.331357,0.00043135,50]
[400290872,1767284306076,785.331357,0.00043135,50]
[400290873,1767284306363,785.331357,0.00043135,50]
[400290874,1767284306811,785.331357,0.00043135,50]
[400290875,1767284307110,785.331357,0.00043135,50]
[400290876,1767284307406,785.331357,0.00043135,50]
[400290877,1767284307719,785.331357,0.00043135,50]
[400290878,1767284308047,785.331357,0.00043135,50]
[400290879,1767284308376,785.331357,0.00043135,50]
[400290880,1767284308701,785.331357,0.00043135,50]
[400290881,1767284309024,785.331357,0.00043135,50]
[400290882,1767284309328,785.331357,0.00043135,50]
[400290883,1767284309524,193.692822,0.00043135,30]
[400290884,1767284309632,785.331357,0.00043135,50]
[400290885,1767284310044,785.331357,0.00043135,50]
[400290886,1767284310341,785.331357,0.00043135,50]
[400290887,1767284310435,151.0,0.00043135,50]
[400290888,1767284310696,785.331357,0.00043135,50]
[400290889,1767284310769,244.313547,0.00043135,50]
[400290890,1767284310997,785.331357,0.00043135,50]
[400290891,1767284311310,785.331349,0.00043135,50]
[400290893,1767284329227,202.996255,0.00043135,50]
[400290894,1767284332534,5000.000001,0.00043135,120]
[400290896,1767284438153,151.0,0.00043125,50]
[400290897,1767284438441,151.0,0.00043125,50]
[400290898,1767284438626,151.0,0.00043125,50]
[400290899,1767284438748,151.0,0.00043125,50]
[400290900,1767284438951,151.0,0.00043125,50]
[400290901,1767284439567,151.0,0.00043125,50]
[400290902,1767284439847,151.0,0.00043125,50]
[400290903,1767284440144,151.0,0.00043125,50]
[400290904,1767284440448,151.0,0.00043125,50]
[400290905,1767284440800,151.0,0.00043125,50]
[400290906,1767284441178,151.0,0.00043125,50]
[400290907,1767284441469,240.487751,0.00043125,50]
[400290908,1767284462710,500.0,0.00043125,120]
[400290909,1767284496105,151.0,0.00043125,50]
[400290910,1767284496783,151.0,0.00043125,50]
[400290911,1767284497104,151.0,0.00043125,50]
[400290912,1767284497387,151.0,0.00043125,50]
[400290913,1767284497678,151.0,0.00043125,50]
[400290914,1767284497983,151.0,0.00043125,50]
[400290915,1767284498340,151.0,0.00043125,50]
[400290916,1767284498649,151.0,0.00043125,50]
[400290917,1767284498937,151.0,0.00043125,50]
[400290918,1767284499246,242.905785,0.00043125,50]
[400290920,1767284600909,476.236398,0.00043125,50]
[400290921,1767284601233,476.236398,0.00043125,50]
[400290922,1767284601544,476.236398,0.00043125,50]
[400290923,1767284601837,476.236398,0.00043125,50]
[400290924,1767284602178,476.236398,0.00043125,50]
[400290925,1767284602502,476.236398,0.00043125,50]
[400290926,1767284602804,476.236398,0.00043125,50]
[400290927,1767284603128,476.236398,0.00043125,50]
[400290928,1767284603441,476.236398,0.00043125,50]
[400290929,1767284603762,476.236398,0.00043125,50]
[400290930,1767284604057,476.236398,0.00043125,50]
[400290931,1767284604555,476.236398,0.00043125,50]
[400290932,1767284604660,476.236398,0.00043125,50]
[400290933,1767284604971,476.236398,0.00043125,50]
[400290934,1767284605353,476.236398,0.00043125,50]
[400290935,1767284605743,476.236398,0.00043125,50]
[400290936,1767284606613,476.236398,0.00043125,50]
[400290937,1767284606943,476.236398,0.00043125,50]
[400290938,1767284607230,476.236398,0.00043125,50]
[400290939,1767284607564,476.236395,0.00043125,50]
[400290940,1767284623466,-707.55,0.00013699,2]
[400290941,1767284623488,-340.8943,0.00014589,2]
[400290942,1767284623510,-236.2144,0.00014589,2]
[400290943,1767284623535,-271.0,0.0001459,2]
[400290944,1767284623565,-966.13213531,0.00014601,2]
[400290945,1767284623598,-1903.43123191,0.00014601,2]
[400290946,1767284623623,-154.72499476,0.00014601,2]
[400290947,1767284623645,-600.0,0.00014602,2]
[400290948,1767284623670,-300.0,0.00014614,2]
[400290949,1767284623694,-600.0,0.00014644,2]
[400290950,1767284623716,-270.26718207,0.00014644,2]
[400290951,1767284623996,-604.3518,0.00014687,2]
[400290952,1767284624021,-740.788,0.00014688,2]
[400290953,1767284624045,-205.89399139,0.00014688,2]
[400290954,1767284624067,-500.0,0.00014688,2]
[400290955,1767284624092,-206.74206975,0.00014688,2]
[400290956,1767284624114,-221.22289529,0.00014688,2]
[400290957,1767284624138,-350.66378479,0.00014688,2]
[400290958,1767284624159,-150.99,0.00014688,2]
[400290959,1767284624181,-5669.13321473,0.00014688,2]
[400290960,1767284648238,-500.0,0.00014688,2]
[400290962,1767284665531,274.042615,0.00043125,50]
[400290964,1767284709708,163.59,7.63e-05,2]
[400290965,1767284710164,163.59,8.032e-05,2]
[400290966,1767284710227,163.59,8.433e-05,2]
[400290967,1767284710309,163.59,8.835e-05,2]
[400290968,1767284710506,163.59,9.236e-05,2]
[400290969,1767284710714,85.31,9.638e-05,2]
[400290970,1767284710992,78.28,9.638e-05,2]
[400290971,1767284711053,163.59,0.0001004,2]
[400290972,1767284711204,163.59,0.00010441,2]
[400290973,1767284731197,-163.59,0.00010843,2]
[400290974,1767284741940,161.275539,0.00043125,50]
[400290975,1767284742233,161.275539,0.00043125,50]
[400290976,1767284742512,161.275539,0.00043125,50]
[400290977,1767284742812,161.275539,0.00043125,50]
[400290978,1767284743109,161.275539,0.00043125,50]
[400290979,1767284743433,161.275539,0.00043125,50]
[400290980,1767284744038,161.275539,0.00043125,50]
[400290981,1767284744555,161.275539,0.00043125,50]
[400290982,1767284744725,161.275539,0.00043125,50]
[400290983,1767284745024,161.275539,0.00043125,50]
[400290984,1767284745309,161.275539,0.00043125,50]
[400290985,1767284745620,161.275539,0.00043125,50]
[400290986,1767284745921,161.275539,0.00043125,50]
[400290987,1767284746201,161.275539,0.00043125,50]
[400290988,1767284746500,161.275539,0.00043125,50]
[400290989,1767284747048,161.275539,0.00043125,50]
[400290990,1767284747269,161.275539,0.00043125,50]
[400290991,1767284747585,161.275539,0.00043125,50]
[400290992,1767284747938,161.275539,0.00043125,50]
[400290993,1767284748283,161.275539,0.00043125,50]
[400290994,1767284761214,500.0,0.00043125,120]
[400290999,1767284824554,-163.59,0.00011244,2]
[400291004,1767284921159,458.66906225,0.00043125,120]
[400291005,1767284925685,50000.0,0.00043125,30]
[400291006,1767284967109,-163.59,0.00011646,2]
[400291007,1767284967132,-163.59,0.00012048,2]
[400291008,1767284967155,-233.61591145,0.00012369,2]
[400291009,1767284967177,-163.59,0.00012449,2]
[400291010,1767284967200,-250.0,0.00012811,2]
[400291011,1767284967222,-229.08399187,0.00012811,2]
[400291012,1767284967244,-300.0,0.00012811,2]
[400291013,1767284967268,-163.59,0.00012851,2]
[400291019,1767285031535,-259.0,0.00013252,2]
[400291022,1767285031546,-250.0,0.00013252,2]
[400291024,1767285031556,-163.59,0.00013252,2]
[400291026,1767285031566,-163.59,0.00013654,2]
[400291028,1767285031575,-818.17,0.00013699,2]
[400291029,1767285031585,-2761.27358484,0.0001399,2]
[400291030,1767285031597,-398.55166055,0.0001399,2]
[400291031,1767285031607,-163.59,0.00014055,2]
[400291032,1767285031617,-163.59,0.00014457,2]
[400291033,1767285031627,-627.10092635,0.00014577,2]
[400291034,1767285031637,-600.0,0.00014577,2]
[400291035,1767285031647,-260.55062385,0.00014577,2]
[400291036,1767285031658,-193.54993813,0.00014577,2]
[400291037,1767285031668,-250.0,0.00014577,2]
[400291038,1767285031678,-195.0,0.00014577,2]
[400291048,1767285031897,-869.51892177,0.00014658,2]
[400291049,1767285031908,-300.0,0.00014687,2]
[400291050,1767285031918,-3616.88697763,0.00014688,2]
[400291051,1767285031934,-213.96980764,0.00014688,2]
[400291052,1767285031944,-150.99,0.00014688,2]
[400291053,1767285031958,-11521.63516013,0.00014758,2]
[400291056,1767285037808,-1068.86980549,0.00014758,2]
[400291057,1767285037826,-774.47388075,0.00014758,2]
[400291220,1767285044488,-702.38409955,0.00014758,2]
[400291221,1767285044505,-759.59224595,0.00014758,2]
[400291238,1767285045648,-1348.25480813,0.00014758,2]
[400291239,1767285045659,-328.32,0.00014758,2]
[400291241,1767285045669,-163.59,0.00014859,2]
[400291243,1767285045679,-869.51892171,0.00014907,2]
[400291244,1767285045690,-869.51892171,0.00015156,2]
[400291246,1767285045700,-715.84,0.0001526,2]
[400291248,1767285045711,-163.59,0.0001526,2]
[400291249,1767285045720,-161.82,0.00015288,2]
[400291251,1767285045730,-200.0,0.0001536,2]
[400291253,1767285045740,-595.46464936,0.00015366,2]
[400291254,1767285045750,-154.8560267,0.00015366,2]
[400291256,1767285045761,-9999.99,0.00015367,2]
[400291258,1767285045771,-200.57,0.00015367,2]
[400291260,1767285045781,-73699.63,0.00015367,2]
[400291261,1767285045791,-9999.99,0.00015367,2]
[400291262,1767285045800,-425.66,0.00015367,2]
[400291263,1767285045810,-9999.99,0.00015367,2]
[400291264,1767285045820,-869.51892171,0.00015405,2]
[400291265,1767285045830,-869.51892171,0.00015654,2]
[400291266,1767285045840,-869.51892171,0.00015904,2]
[400291267,1767285045850,-2999.1651407,0.00015945,2]
[400291268,1767285045860,-1199.0,0.00015951,2]
[400291269,1767285045870,-913.0,0.00015951,2]
[400291270,1767285045881,-2433.0,0.00015951,2]
[400291271,1767285045892,-565.0,0.00015951,2]
[400291272,1767285045902,-93387.5570725,0.00015959,2]
[400291273,1767285045912,-22800.8754415,0.00015959,2]
[400291274,1767285045922,-27361.32323784,0.00016,4]
[400291275,1767285045932,-3819.25945,0.00016,2]
[400291276,1767285045942,-3819.25945,0.00016,2]
[400291277,1767285045954,-3089.38919,0.00016,2]
[400291278,1767285045967,-3089.38918,0.00016,2]
[400291279,1767285045977,-3089.38919,0.00016,2]
[400291280,1767285045987,-3089.38918,0.00016,2]
[400291281,1767285045999,-3089.38918,0.00016,2]
[400291282,1767285046009,-3089.38919,0.00016,2]
[400291283,1767285046019,-3089.38918,0.00016,2]
[400291284,1767285046031,-3089.38918,0.00016,2]
[400291285,1767285046040,-3089.38919,0.00016,2]
[400291286,1767285046050,-3089.38919,0.00016,2]
[400291287,1767285046060,-420.0,0.0001608,2]
[400291288,1767285046070,-869.51892171,0.00016153,2]
[400291289,1767285046080,-5000.00091839,0.000162,5]
[400291290,1767285046090,-200.0,0.0001634,2]
[400291291,1767285046100,-869.51892171,0.00016402,2]
[400291292,1767285046110,-500.0,0.00016438,2]
[400291293,1767285046120,-500.0,0.00016438,2]
[400291294,1767285046130,-500.0,0.00016438,2]
[400291295,1767285046140,-638.45745534,0.00016438,2]
[400291296,1767285046150,-4547.67,0.00016438,2]
[400291297,1767285046165,-869.51892171,0.00016651,2]
[400291298,1767285046175,-3803.9386985,0.0001666,2]
[400291299,1767285046185,-151.0,0.00016665,2]
[400291300,1767285046196,-151.0,0.00016665,2]
[400291301,1767285046207,-151.0,0.00016699,2]
[400291302,1767285046217,-151.0,0.00016699,2]
[400291303,1767285046227,-151.0,0.00016699,2]
[400291304,1767285046236,-151.0,0.00016699,2]
[400291305,1767285046246,-1442.99132632,0.000167,2]
[400291306,1767285046270,-2116.4783889,0.000167,2]
[400291307,1767285046282,-1008.62907906,0.000167,2]
[400291308,1767285046292,-151.0,0.00016704,2]
[400291309,1767285046301,-164.79,0.00016712,2]
[400291310,1767285046311,-80.13787307,0.000168,2]
[400291311,1767285046323,-2486.69526029,0.000168,2]
[400291312,1767285046335,-934.4712425,0.000168,2]
[400291313,1767285046345,-70.75360074,0.00016802,2]
[400291314,1767285046360,-409.55999997,0.00016802,2]
[400291315,1767285061994,500.0,0.00043125,120]
[400291318,1767285264424,5000.0,0.00043125,55]
[400291320,1767285362127,500.0,0.00043125,120]
[400291324,1767285661576,500.0,0.00043128,120]
[400291327,1767285962488,500.0,0.00043128,120]
[400291329,1767285992129,-501.04767026,0.00014298,2]
[400291339,1767286153981,250.0,0.00043128,120]
[400291340,1767286155058,250.0,0.00043128,120]
[400291341,1767286155282,250.0,0.00043128,120]
[400291342,1767286155971,250.0,0.00043128,120]
[400291343,1767286156578,250.0,0.00043128,120]
[400291344,1767286157210,250.0,0.00043128,120]
[400291345,1767286157838,250.0,0.00043128,120]
[400291346,1767286158455,250.0,0.00043128,120]
[400291350,1767286231694,-91.58232974,0.00014298,2]
[400291351,1767286231705,-2500.0,0.00014406,2]
[400291352,1767286231716,-164.70180142,0.00014514,2]
[400291353,1767286231726,-1713.08810871,0.00014514,2]
[400291354,1767286231735,-300.0,0.00014585,2]
[400291355,1767286231745,-1200.0,0.00014585,2]
[400291356,1767286231754,-150.0,0.00014586,2]
[400291357,1767286231764,-208.6,0.00014586,2]
[400291358,1767286231773,-151.0,0.00014586,2]
[400291359,1767286231783,-500.0,0.00014586,2]
[400291360,1767286231793,-500.0,0.00014586,2]
[400291361,1767286231803,-500.0,0.00014586,2]
[400291362,1767286231812,-500.0,0.00014586,2]
[400291363,1767286231822,-500.0,0.00014586,2]
[400291364,1767286231831,-500.0,0.00014586,2]
[400291365,1767286231840,-283.81792237,0.00014586,2]
[400291366,1767286231850,-500.0,0.00014586,2]
[400291367,1767286231859,-500.0,0.00014586,2]
[400291368,1767286231869,-500.0,0.00014586,2]
[400291369,1767286231879,-500.0,0.00014586,2]
[400291370,1767286231888,-416.82525455,0.00014588,2]
[400291371,1767286231898,-155.25981065,0.00014588,2]
[400291372,1767286231907,-5268.45,0.00014589,2]
[400291373,1767286231917,-740.17,0.00014589,2]
[400291374,1767286231926,-9737.55,0.00014589,2]
[400291375,1767286231935,-166.66,0.00014614,2]
[400291376,1767286231945,-500.0,0.00014689,2]
[400291377,1767286231954,-500.0,0.00014689,2]
[400291379,1767286231963,-164.70180138,0.00014779,2]
[400291380,1767286231973,-1713.08810866,0.00014779,2]
[400291381,1767286231982,-10389.69,0.0001478,2]
[400291382,1767286231991,-150.0,0.00014821,2]
[400291383,1767286232001,-208.6,0.0001486,2]
[400291384,1767286232011,-166.66,0.00014921,2]
[400291386,1767286232020,-164.70180138,0.00015044,2]
[400291388,1767286232030,-1004.7945696,0.00015044,2]
[400291390,1767286232042,-618.09932748,0.00015044,2]
[400291392,1767286232054,-90.19421158,0.00015044,2]
[400291394,1767286232063,-365.44,0.00015117,2]
[400291395,1767286232073,-32.16440243,0.00015118,2]
[400291396,1767286232084,-117.83559757,0.00015118,2]
[400291397,1767286232095,-208.6,0.00015134,2]
[400291398,1767286232105,-166.66,0.00015229,2]
[400291399,1767286232115,-200.0,0.00015265,2]
[400291400,1767286232126,-150.0,0.00015288,2]
[400291401,1767286232135,-537.19627589,0.00015288,2]
[400291402,1767286232145,-150.0,0.00015288,2]
[400291403,1767286232154,-537.19627589,0.00015305,2]
[400291404,1767286232163,-164.70180138,0.00015309,2]
[400291405,1767286232173,-23.73168587,0.00015309,2]
[400291417,1767286239949,-458.91170172,0.00015309,2]
[400291418,1767286239962,-1230.44472107,0.00015309,2]
[400291419,1767286239972,-537.19627589,0.00015322,2]
[400291420,1767286239982,-537.19627589,0.00015339,2]
[400291421,1767286239992,-537.19627589,0.00015356,2]
[400291422,1767286240002,-513.10274839,0.00015373,2]
[400291423,1767286240015,-24.0935275,0.00015373,2]
[400291424,1767286240025,-537.19627589,0.00015391,2]
[400291425,1767286240035,-224.57491261,0.00015408,2]
[400291426,1767286240057,-312.62136328,0.00015408,2]
[400291427,1767286240066,-208.6,0.00015408,2]
[400291428,1767286240076,-537.19627589,0.00015425,2]
[400291429,1767286240085,-521.14600146,0.00015442,2]
[400291430,1767286240160,-16.05027443,0.00015442,2]
[400291431,1767286240170,-293.94996557,0.00015459,2]
[400291450,1767286243357,-243.24631032,0.00015459,2]
[400291451,1767286243368,-537.19627589,0.00015476,2]
[400291452,1767286243379,-537.19627589,0.00015494,2]
[400291453,1767286243389,-537.19627589,0.00015511,2]
[400291454,1767286243399,-537.19627589,0.00015528,2]
[400291455,1767286243410,-166.66,0.00015537,2]
[400291456,1767286243419,-537.19627589,0.00015545,2]
[400291457,1767286243429,-537.19627589,0.00015562,2]
[400291458,1767286243439,-164.70180138,0.00015574,2]
[400291459,1767286243448,-1713.08810866,0.00015574,2]
[400291460,1767286243459,-1497.59,0.00015576,2]
[400291461,1767286243468,-537.19627589,0.00015579,2]
[400291462,1767286243479,-537.19627589,0.00015597,2]
[400291463,1767286243489,-537.19627589,0.00015614,2]
[400291464,1767286243498,-999.0,0.00015618,3]
[400291465,1767286243507,-537.19627589,0.00015631,2]
[400291466,1767286243519,-3350.86,0.00015639,2]
[400291467,1767286243529,-537.19627589,0.00015648,2]
[400291468,1767286243538,-537.19627589,0.00015665,2]
[400291469,1767286243548,-208.61,0.00015682,2]
[400291470,1767286243558,-537.19627589,0.00015682,2]
[400291471,1767286243568,-537.19627589,0.00015699,2]
[400291472,1767286243578,-150.0,0.00015709,2]
[400291473,1767286243588,-537.19627589,0.00015717,2]
[400291474,1767286243597,-294.63156314,0.00015728,2]
[400291475,1767286243607,-195.0,0.00015728,2]
[400291476,1767286243617,-758.66807815,0.00015728,2]
[400291477,1767286243629,-1741.33192185,0.00015728,2]
[400291478,1767286243639,-537.19627589,0.00015734,2]
[400291479,1767286243649,-537.19627589,0.00015751,2]
[400291480,1767286243659,-198.0,0.00015753,2]
[400291481,1767286243669,-72.38872915,0.00015768,2]
[400291482,1767286243738,-55.67196339,0.00015768,2]
[400291517,1767286245878,-409.13558335,0.00015768,2]
[400291518,1767286245889,-196.59,0.00015779,2]
[400291519,1767286245899,-537.19627589,0.00015785,2]
[400291520,1767286245909,-537.19627589,0.00015802,2]
[400291521,1767286245919,-537.19627589,0.0001582,2]
[400291522,1767286245929,-537.19627589,0.00015837,2]
[400291523,1767286245939,-164.70180138,0.0001584,2]
[400291524,1767286245949,-1713.08810866,0.0001584,2]
[400291525,1767286245958,-166.66,0.00015844,2]
[400291526,1767286245968,-537.19627589,0.00015854,2]
[400291527,1767286245978,-537.19627589,0.00015871,2]
[400291528,1767286245988,-537.19627589,0.00015888,2]
[400291529,1767286245998,-537.19627589,0.00015905,2]
[400291530,1767286246007,-537.19627589,0.00015923,2]
[400291531,1767286246017,-537.19627589,0.0001594,2]
[400291532,1767286246027,-537.19627589,0.00015957,2]
[400291533,1767286246036,-416.0,0.0001597,2]
[400291534,1767286246046,-537.19627589,0.00015974,2]
[400291535,1767286246056,-537.19627589,0.00015991,2]
[400291536,1767286246065,-537.19627589,0.00016008,2]
[400291537,1767286246075,-537.19627589,0.00016025,2]
[400291538,1767286246085,-1403.0,0.00016031,2]
[400291539,1767286246095,-112.20651507,0.00016031,2]
[400291540,1767286246107,-323.45648493,0.00016031,2]
[400291541,1767286246117,-2433.0,0.00016031,2]
[400291542,1767286246126,-6064.403,0.00016031,2]
[400291543,1767286246135,-565.0,0.00016031,2]
[400291544,1767286246145,-4888.5753086,0.0001604,2]
[400291545,1767286246156,-1882.8591741,0.00016042,2]
[400291546,1767286246166,-4093.0077233,0.00016042,2]
[400291547,1767286246175,-20022.5691688,0.00016042,2]
[400291548,1767286246185,-537.19627589,0.00016043,2]
[400291549,1767286246196,-537.19627589,0.0001606,2]
[400291550,1767286246205,-537.19627589,0.00016077,2]
[400291551,1767286246215,-537.19627589,0.00016094,2]
[400291552,1767286246224,-164.70180138,0.00016105,2]
[400291553,1767286246234,-1713.08810866,0.00016105,2]
[400291554,1767286246244,-537.19627589,0.00016111,2]
[400291555,1767286246254,-537.19627589,0.00016128,2]
[400291556,1767286246264,-537.19627589,0.00016146,2]
[400291557,1767286246274,-166.66,0.00016152,2]
[400291558,1767286246284,-537.19627589,0.00016163,2]
[400291559,1767286246294,-537.19627589,0.0001618,2]
[400291561,1767286246305,-537.19627589,0.00016197,2]
[400291563,1767286246314,-537.19627589,0.00016214,2]
[400291565,1767286246324,-537.19627589,0.00016231,2]
[400291567,1767286246334,-537.19627589,0.00016249,2]
[400291569,1767286246344,-537.19627589,0.00016266,2]
[400291570,1767286246354,-537.19627589,0.00016283,2]
[400291571,1767286246363,-537.19627589,0.000163,2]
[400291572,1767286246373,-537.19627589,0.00016317,2]
[400291573,1767286246383,-537.19627589,0.00016334,2]
[400291574,1767286246393,-537.19627589,0.00016351,2]
[400291575,1767286246403,-537.19627589,0.00016369,2]
[400291576,1767286246413,-164.70180138,0.0001637,2]
[400291577,1767286246423,-1713.08810866,0.0001637,2]
[400291578,1767286246434,-537.19627589,0.00016386,2]
[400291579,1767286246443,-537.19627589,0.00016403,2]
[400291580,1767286246453,-537.19627589,0.0001642,2]
[400291581,1767286246463,-537.19627589,0.00016437,2]
[400291582,1767286246473,-237.60638393,0.00016438,2]
[400291583,1767286246483,-3789.72,0.00016438,2]
[400291584,1767286246492,-537.19627589,0.00016454,2]
[400291585,1767286246503,-537.19627589,0.00016472,2]
[400291586,1767286246512,-537.19627589,0.00016489,2]
[400291587,1767286246522,-537.19627589,0.00016506,2]
[400291588,1767286246531,-151.0,0.00016522,2]
[400291589,1767286246542,-151.0,0.00016522,2]
[400291590,1767286246551,-151.0,0.00016522,2]
[400291591,1767286246562,-151.0,0.00016522,2]
[400291592,1767286246571,-537.19627589,0.00016523,2]
[400291593,1767286246581,-151.0,0.00016532,2]
[400291594,1767286246591,-151.0,0.00016532,2]
[400291595,1767286246601,-151.0,0.00016532,2]
[400291596,1767286246611,-151.0,0.00016532,2]
[400291597,1767286246620,-537.19627589,0.0001654,2]
[400291598,1767286246630,-537.19627589,0.00016557,2]
[400291599,1767286246639,-196.59,0.00016568,2]
[400291600,1767286246653,-537.19627589,0.00016575,2]
[400291601,1767286246662,-537.19627589,0.00016592,2]
[400291602,1767286246672,-537.19627589,0.00016609,2]
[400291603,1767286246682,-537.19627589,0.00016626,2]
[400291604,1767286246691,-164.70180138,0.00016635,2]
[400291605,1767286246702,-1713.08810866,0.00016635,2]
[400291606,1767286246712,-537.19627589,0.00016643,2]
[400291607,1767286246722,-537.19627589,0.0001666,2]
[400291608,1767286246731,-200.0,0.00016668,2]
[400291609,1767286246741,-537.19627589,0.00016677,2]
[400291610,1767286246751,-537.19627589,0.00016695,2]
[400291611,1767286246760,-537.19627589,0.00016712,2]
[400291612,1767286246770,-164.79,0.00016712,2]
[400291613,1767286246779,-537.19627589,0.00016729,2]
[400291614,1767286246789,-537.19627589,0.00016746,2]
[400291615,1767286246798,-537.19627589,0.00016763,2]
[400291616,1767286246808,-537.19627589,0.0001678,2]
[400291617,1767286246818,-537.19627589,0.00016798,2]
[400291618,1767286246828,-519.68639929,0.00016802,2]
[400291619,1767286246838,-1901.96934925,0.00016802,2]
[400291620,1767286246847,-168.0,0.00016813,2]
[400291621,1767286246857,-537.19627589,0.00016815,2]
[400291622,1767286246866,-537.19627589,0.00016832,2]
[400291623,1767286246876,-537.19627589,0.00016849,2]
[400291624,1767286246886,-537.19627589,0.00016866,2]
[400291625,1767286246895,-537.19627589,0.00016883,2]
[400291626,1767286246905,-166.66666668,0.00016898,2]
[400291627,1767286246914,-500.0,0.00016899,2]
[400291628,1767286246924,-500.0,0.00016899,2]
[400291629,1767286246933,-500.0,0.00016899,2]
[400291630,1767286246942,-473.27426277,0.00016899,2]
[400291631,1767286246951,-500.0,0.00016899,2]
[400291632,1767286246961,-500.0,0.00016899,2]
[400291633,1767286246970,-500.0,0.00016899,2]
[400291634,1767286246980,-162.79571783,0.00016899,2]
[400291635,1767286246995,-500.0,0.00016899,2]
[400291636,1767286247006,-464.2399143,0.00016899,2]
[400291637,1767286247015,-500.0,0.00016899,2]
[400291638,1767286247025,-166.66666666,0.00016899,2]
[400291639,1767286247035,-1648.0,0.00016899,2]
[400291640,1767286247045,-248.3672316,0.000169,3]
[400291641,1767286247054,-164.70180138,0.000169,2]
[400291642,1767286247064,-1713.08810866,0.000169,2]
[400291643,1767286247074,-1909.43091514,0.000169,2]
[400291644,1767286247083,-349.95201862,0.000169,2]
[400291645,1767286247093,-166.66666666,0.000169,2]
[400291646,1767286247103,-537.19627589,0.00016901,2]
[400291647,1767286247114,-537.19627589,0.00016918,2]
[400291648,1767286247123,-537.19627589,0.00016935,2]
[400291649,1767286247133,-537.19627589,0.00016952,2]